bitfinex-derivatives/quotes_SOLF0:USTF0_20251107
["timestamp","ask_amount","ask_price","bid_price","bid_amount"]
[1762508770424,0.0486034,154.53,154.49,3.2249578]
[1762508771220,0.0486034,154.53,154.51,3.18]
[1762508771613,3.1986034,154.53,154.49,0.0449578]
[1762508772523,3.15,154.51,154.49,0.0449578]
[1762508773119,3.15,154.5,154.41,3.18]
[1762508773829,5.8297,154.47,154.41,9.0116]
[1762508774014,3.19568166,154.46,154.42,0.04399159]
[1762508774819,3.03,154.45,154.42,0.04399159]
[1762508775825,3.03,154.45,154.35,3.1]
[1762508776521,3.03,154.45,154.36,3.1]
[1762508776918,0.04651813,154.42,154.39,0.04876391]
[1762508777318,0.04651813,154.42,154.39,3.14876391]
[1762508778326,3.03,154.48,154.41,3.1]
[1762508779126,3.03,154.48,154.41,8.9315]
[1762508779322,3.03,154.45,154.43,0.0468859]
[1762508779536,0.04662822,154.46,154.42,0.04888916]
[1762508779835,3.07497589,154.46,154.42,0.04205299]
[1762508780732,3.07497589,154.46,154.42,3.14205299]
[1762508782730,0.04497589,154.46,154.43,3.1]
[1762508783328,0.04497589,154.46,154.45,3.1]
[1762508783934,0.04497589,154.46,154.45,4.4]
[1762508784236,0.04497589,154.46,154.43,3.1]
[1762508784735,3.07497589,154.46,154.42,0.04205299]
[1762508787033,0.04497589,154.46,154.43,8.9308]
[1762508787534,0.04497589,154.46,154.43,5.8308]
[1762508787731,0.04497589,154.46,154.45,3.1]
[1762508787936,3.03,154.53,154.45,3.1]
[1762508788843,3.03,154.51,154.45,3.1]
[1762508789040,5.79737596,154.56,154.46,0.04620167]
[1762508789041,3.07627208,154.5,154.46,0.04620167]
[1762508789241,3.07627208,154.5,154.46,0.04492612]
[1762508790639,3.03,154.48,154.46,0.04492612]
[1762508790943,3.03,154.48,154.38,3.1]
[1762508791138,7.61019585,154.47,154.38,3.1]
[1762508791443,5.83,154.46,154.4,5.8321]
[1762508791645,8.86,154.46,154.4,5.8321]
[1762508792039,3.07572528,154.45,154.41,0.04323655]
[1762508792343,8.90612528,154.45,154.41,0.04323655]
[1762508792541,3.03,154.44,154.41,0.04323655]
[1762508792743,3.07572528,154.45,154.41,0.04323655]
[1762508795548,3.07572528,154.45,154.41,8.97483655]
[1762508795746,3.07572528,154.45,154.41,0.04323655]
[1762508797546,3.03,154.44,154.41,0.04323655]
[1762508798049,3.03,154.42,154.34,3.1]
[1762508798444,3.03,154.42,154.34,8.9342]
[1762508798643,4.4261922,154.44,154.27,62.0]
[1762508798644,3.03,154.4,154.31,3.1]
[1762508798948,3.05,154.38,154.31,3.1]
[1762508799135,3.05,154.38,154.32,5.835]
[1762508799339,3.09446841,154.36,154.33,0.0475751]
[1762508800149,0.04446841,154.36,154.33,3.0875751]
[1762508800544,0.04446841,154.36,154.33,0.0475751]
[1762508800545,3.09446841,154.36,154.33,0.0475751]
[1762508801750,0.04446841,154.36,154.33,0.0475751]
[1762508802047,0.04446841,154.36,154.33,3.0875751]
[1762508802351,0.04446841,154.36,154.35,3.04]
[1762508802546,3.05,154.43,154.35,3.04]
[1762508802945,4.80260804,154.47,154.33,4.4261922]
[1762508802946,9.37204385,154.46,154.39,3.04]
[1762508803145,3.05,154.47,154.39,3.04]
[1762508803446,3.05,154.44,154.41,0.04317752]
[1762508803642,3.09858504,154.44,154.41,0.04198069]
[1762508806355,3.09858504,154.44,154.41,5.87358069]
[1762508806555,0.04858504,154.44,154.41,8.87358069]
[1762508807743,0.04858504,154.44,154.41,5.87358069]
[1762508807951,0.04858504,154.44,154.41,0.04198069]
[1762508807952,3.25858504,154.44,154.41,0.04198069]
[1762508808362,3.21,154.42,154.41,0.04198069]
[1762508808755,3.21,154.42,154.29,3.0]
[1762508808952,3.21,154.39,154.33,5.8346]
[1762508809450,4.56783847,154.41,154.31,3.0]
[1762508809646,0.04500733,154.38,154.34,3.0499134]
[1762508810257,0.04500733,154.38,154.36,5.8335]
[1762508810453,0.04500733,154.38,154.34,3.0499134]
[1762508811060,0.04500733,154.38,154.35,5.8338]
[1762508811551,0.04500733,154.38,154.35,8.8338]
[1762508811752,0.04500733,154.38,154.36,8.8335]
[1762508812959,0.04500733,154.38,154.37,3.0]
[1762508813360,0.04500733,154.38,154.36,8.8335]
[1762508814462,3.21,154.46,154.38,5.8326]
[1762508814758,12.59142694,154.45,154.38,5.8326]
[1762508815065,3.21,154.45,154.38,5.8326]
[1762508815255,3.21,154.44,154.34,3.0]
[1762508815560,3.21,154.4,154.37,0.04559158]
[1762508815758,3.25489876,154.4,154.37,0.04450523]
[1762508816459,9.043,154.38,154.37,0.04450523]
[1762508816661,3.21,154.38,154.31,3.0]
[1762508817864,3.25130012,154.36,154.33,0.04138679]
[1762508818058,9.08510012,154.36,154.33,0.04138679]
[1762508818660,3.25130012,154.36,154.33,0.04138679]
[1762508820057,0.04130012,154.36,154.33,3.04138679]
[1762508820757,3.25130012,154.36,154.33,0.04138679]
[1762508821160,0.04130012,154.36,154.33,8.87608679]
[1762508821366,0.04130012,154.36,154.33,3.04138679]
[1762508822461,0.04130012,154.36,154.35,3.0]
[1762508825767,12.57687157,154.45,154.36,3.0]
[1762508825972,4.57830034,154.47,154.36,3.0]
[1762508826272,9.0402,154.46,154.41,8.8317]
[1762508826468,3.21,154.49,154.42,3.0]
[1762508826870,0.04743962,154.47,154.44,0.04177915]
[1762508827573,3.25743962,154.47,154.44,0.04177915]
[1762508829167,0.04743962,154.47,154.44,3.04177915]
[1762508830679,3.25743962,154.47,154.44,0.04177915]
[1762508832881,9.08713962,154.47,154.44,0.04177915]
[1762508833086,3.25743962,154.47,154.44,0.04177915]
[1762508833483,3.21,154.45,154.36,3.0]
[1762508834484,3.24578087,154.42,154.39,0.04937238]
[1762508834678,3.24578087,154.42,154.33,197.70232552]
[1762508834679,9.37711593,154.41,154.33,200.80232552]
[1762508834988,3.24961744,154.39,154.35,0.04395548]
[1762508835187,3.24961744,154.39,154.35,0.04824247]
[1762508835386,3.24961744,154.39,154.35,3.14824247]
[1762508836091,3.24961744,154.39,154.35,8.98224247]
[1762508836589,0.04961744,154.39,154.37,3.1]
[1762508837984,0.04961744,154.39,154.37,8.9332]
[1762508838185,0.04961744,154.39,154.37,5.8332]
[1762508838390,0.04961744,154.39,154.35,3.14824247]
[1762508838889,0.04961744,154.39,154.36,5.8335]
[1762508839286,0.04961744,154.39,154.37,3.1]
[1762508839483,0.04961744,154.39,154.38,3.1]
[1762508843893,0.04961744,154.39,154.37,5.8332]
[1762508844098,0.04961744,154.39,154.35,8.98204247]
[1762508844302,0.04961744,154.39,154.36,3.1]
[1762508845000,0.04961744,154.39,154.36,8.9336]
[1762508847897,3.24961744,154.39,154.35,0.04824247]
[1762508848893,3.24961744,154.39,154.35,5.88224247]
[1762508850299,3.24961744,154.39,154.36,3.1]
[1762508850507,0.04961744,154.39,154.36,3.1]
[1762508851003,4.57108914,154.45,154.41,3.1]
[1762508851297,3.2,154.49,154.41,3.1]
[1762508851503,9.36753033,154.48,154.41,3.1]
[1762508851701,4.57131276,154.47,154.41,3.1]
[1762508852005,3.2,154.45,154.42,0.04563399]
[1762508852699,3.2,154.44,154.42,0.04563399]
[1762508852891,3.2,154.41,154.33,3.1]
[1762508853800,0.04464292,154.39,154.36,3.1]
[1762508854103,0.04654741,154.39,154.36,3.14825342]
[1762508854403,0.04654741,154.39,154.38,3.1]
[1762508854704,3.2,154.47,154.38,3.1]
[1762508855009,12.56708041,154.46,154.38,3.1]
[1762508855200,9.36708041,154.45,154.38,3.1]
[1762508855503,4.57121331,154.44,154.38,3.1]
[1762508855702,0.04519952,154.43,154.39,3.14973098]
[1762508855904,0.04619869,154.43,154.39,3.14973098]
[1762508856105,0.04619869,154.43,154.4,5.8321]
[1762508856305,0.04619869,154.43,154.41,3.1]
[1762508856501,0.04619869,154.43,154.41,8.9317]
[1762508857201,0.04619869,154.43,154.39,0.04973098]
[1762508857406,0.04619869,154.43,154.39,3.14973098]
[1762508857802,0.04619869,154.43,154.4,5.8321]
[1762508858103,0.04619869,154.43,154.4,8.9321]
[1762508858501,0.04619869,154.43,154.41,5.8317]
[1762508858696,0.04619869,154.43,154.41,8.9317]
[1762508859618,3.02619869,154.43,154.39,0.04973098]
[1762508860095,0.04619869,154.43,154.41,3.2]
[1762508861007,0.04619869,154.43,154.41,9.0317]
[1762508864107,0.04619869,154.43,154.39,3.24973098]
[1762508864908,3.03619869,154.43,154.39,9.08203098]
[1762508865208,0.04619869,154.43,154.39,3.28973098]
[1762508865508,0.04619869,154.43,154.42,3.24]
[1762508865709,0.04619869,154.43,154.4,3.24]
[1762508865908,2.99,154.41,154.39,0.04973098]
[1762508866213,0.04619869,154.43,154.39,3.28973098]
[1762508866613,0.04619869,154.43,154.4,9.0721]
[1762508867413,0.04619869,154.43,154.41,5.8317]
[1762508867604,0.04619869,154.43,154.42,3.24]
[1762508868010,0.04619869,154.43,154.41,5.8317]
[1762508868310,0.04619869,154.43,154.41,9.0717]
[1762508869617,0.04619869,154.43,154.42,3.24]
[1762508870216,0.04619869,154.43,154.41,5.8317]
[1762508870712,0.04619869,154.43,154.39,3.28973098]
[1762508871217,0.04619869,154.43,154.4,9.0721]
[1762508871715,8.8214,154.42,154.39,0.04973098]
[1762508871910,2.99,154.42,154.39,0.04973098]
[1762508872216,5.87729869,154.43,154.39,3.28973098]
[1762508873818,8.86729869,154.43,154.39,3.28973098]
[1762508874915,3.03619869,154.43,154.39,9.12223098]
[1762508875109,3.03619869,154.43,154.39,0.04973098]
[1762508875514,7.56711664,154.42,154.39,0.04973098]
[1762508875718,2.99,154.42,154.39,0.04973098]
[1762508876319,5.87729869,154.43,154.39,3.28973098]
[1762508876519,0.04619869,154.43,154.4,3.24]
[1762508877217,0.04619869,154.43,154.4,9.0721]
[1762508877722,0.04619869,154.43,154.4,3.24]
[1762508879821,5.87729869,154.43,154.4,3.24]
[1762508880019,2.99,154.42,154.39,0.04973098]
[1762508880220,2.99,154.42,154.26,15.76550303]
[1762508880221,2.99,154.4,154.32,3.24]
[1762508880524,5.8332,154.38,154.32,9.0751]
[1762508880727,2.99,154.39,154.33,3.24]
[1762508880923,2.99,154.43,154.33,3.24]
[1762508881223,0.04246877,154.4,154.36,3.28269788]
[1762508881825,0.04246877,154.4,154.39,3.24]
[1762508882213,4.76742389,154.46,154.4,3.24]
[1762508882420,4.64765453,154.45,154.4,3.24]
[1762508882622,5.83851075,154.49,154.4,3.24]
[1762508882824,12.40749285,154.48,154.41,3.24]
[1762508883020,9.41749285,154.47,154.41,3.24]
[1762508883223,9.46441606,154.46,154.42,5.87657157]
[1762508883421,4.64871381,154.45,154.43,3.24]
[1762508883616,0.04692321,154.46,154.43,3.24]
[1762508883919,4.64867095,154.45,154.44,3.24]
[1762508884226,0.04692321,154.46,154.44,3.24]
[1762508886219,0.04692321,154.46,154.45,3.24]
[1762508886421,4.69229942,154.46,154.45,3.24]
[1762508887324,0.04692321,154.46,154.45,3.24]
[1762508888520,0.04692321,154.46,154.42,0.04527157]
[1762508888521,3.03692321,154.46,154.42,0.04527157]
[1762508888721,2.99,154.44,154.42,0.04527157]
[1762508888921,3.03692321,154.46,154.42,3.28527157]
[1762508889119,0.04692321,154.46,154.42,3.28527157]
[1762508890114,0.04692321,154.46,154.43,9.0709]
[1762508890715,0.04692321,154.46,154.43,5.8309]
[1762508891122,0.04692321,154.46,154.43,9.0709]
[1762508892329,0.04692321,154.46,154.42,0.04527157]
[1762508892330,2.99,154.44,154.42,0.04527157]
[1762508892526,7.63189502,154.43,154.42,0.04527157]
[1762508892829,7.63257883,154.43,154.42,0.04527157]
[1762508893221,2.99,154.42,154.33,3.24]
[1762508893418,7.63334619,154.41,154.33,3.24]
[1762508893625,2.99,154.41,154.33,3.24]
[1762508894026,2.99,154.41,154.35,3.24]
[1762508894222,2.99,154.41,154.36,0.04587167]
[1762508894426,0.0426867,154.4,154.36,3.29587167]
[1762508895219,0.0426867,154.4,154.36,9.12937167]
[1762508895821,0.0426867,154.4,154.37,5.8332]
[1762508896034,0.0426867,154.4,154.38,3.25]
[1762508897121,0.0426867,154.4,154.38,9.0828]
[1762508897634,0.0426867,154.4,154.39,3.25]
[1762508899133,4.76812492,154.45,154.4,3.25]
[1762508899441,5.83851075,154.49,154.41,3.25]
[1762508899738,9.41731541,154.48,154.45,9.0802]
[1762508900035,9.41731541,154.47,154.45,3.25]
[1762508900232,4.64863383,154.46,154.45,3.25]
[1762508903835,0.04377351,154.48,154.45,3.25]
[1762508904043,0.04377351,154.48,154.46,3.25]
[1762508904346,0.04377351,154.48,154.46,9.0797]
[1762508904543,0.04377351,154.48,154.46,3.25]
[1762508905244,0.04377351,154.48,154.46,9.0797]
[1762508905544,0.04377351,154.48,154.47,3.25]
[1762508907640,0.04377351,154.48,154.45,3.25]
[1762508908344,0.04377351,154.48,154.47,3.25]
[1762508911047,4.63814544,154.53,154.51,9.0779]
[1762508911249,1.88838753,154.54,154.51,9.0779]
[1762508912143,0.04830772,154.54,154.53,3.25]
[1762508913944,0.04830772,154.54,154.53,5.13838753]
[1762508914148,4.76038512,154.6,154.57,3.25]
[1762508914348,1.88838753,154.61,154.57,3.25]
[1762508914537,4.62843716,154.6,154.57,3.25]
[1762508914737,5.11838753,154.61,154.57,3.25]
[1762508914934,4.62843853,154.6,154.57,3.25]
[1762508915140,0.04748692,154.6,154.57,3.29517028]
[1762508915842,0.04748692,154.6,154.57,0.04517028]
[1762508916044,3.27748692,154.6,154.57,0.04517028]
[1762508916245,5.16587445,154.6,154.57,0.04517028]
[1762508916445,3.23,154.59,154.57,0.04517028]
[1762508917047,3.23,154.58,154.57,0.04517028]
[1762508918343,4.53,154.58,154.57,0.04517028]
[1762508918537,9.056,154.57,154.51,3.25]
[1762508919441,0.04791749,154.56,154.52,3.18302323]
[1762508919641,0.04139356,154.56,154.52,3.18302323]
[1762508920845,0.04139356,154.56,154.53,8.9672]
[1762508921242,3.14139356,154.56,154.52,0.04302323]
[1762508921438,8.96759356,154.56,154.52,3.18302323]
[1762508921644,3.14139356,154.56,154.52,3.18302323]
[1762508921845,0.04139356,154.56,154.54,3.14]
[1762508922454,0.04139356,154.56,154.54,8.9668]
[1762508922649,0.04139356,154.56,154.55,3.14]
[1762508923453,0.04139356,154.56,154.54,5.8268]
[1762508924054,0.04139356,154.56,154.54,8.9668]
[1762508924857,0.04139356,154.56,154.54,3.14]
[1762508925455,0.04139356,154.56,154.54,8.9668]
[1762508925651,0.04139356,154.56,154.55,3.26]
[1762508927158,3.15,154.62,154.56,3.26]
[1762508928152,3.15,154.6,154.57,0.04911748]
[1762508929253,0.04206272,154.61,154.57,3.30911748]
[1762508929554,3.19206272,154.61,154.57,9.13471748]
[1762508929858,9.01636272,154.61,154.57,3.30911748]
[1762508930356,8.9746,154.6,154.57,0.04911748]
[1762508930560,3.15,154.6,154.57,0.04911748]
[1762508931462,3.15,154.58,154.57,0.04911748]
[1762508932161,4.45,154.58,154.57,0.04911748]
[1762508933859,3.15,154.58,154.57,0.04911748]
[1762508934160,9.01656272,154.61,154.57,0.04911748]
[1762508934855,5.8246,154.6,154.57,0.04911748]
[1762508935059,3.19206272,154.61,154.57,0.04911748]
[1762508935650,8.975,154.59,154.57,0.04911748]
[1762508936664,3.15,154.58,154.57,0.04911748]
[1762508941258,3.15,154.6,154.57,0.04911748]
[1762508941456,3.15,154.59,154.57,0.04911748]
[1762508942170,8.975,154.59,154.57,0.04911748]
[1762508942465,3.15,154.57,154.46,3.26]
[1762508942663,3.15,154.5,154.46,3.26]
[1762508942868,3.15,154.5,154.44,5.8303]
[1762508943064,3.15,154.55,154.45,3.26]
[1762508943264,12.53535702,154.54,154.45,3.26]
[1762508943459,0.04565689,154.52,154.48,3.30329101]
[1762508943867,0.04565689,154.52,154.48,6.25099529]
[1762508944061,0.04565689,154.52,154.49,3.26]
[1762508944662,3.19565689,154.52,154.48,2.99099529]
[1762508944864,3.19565689,154.52,154.48,6.25099529]
[1762508945261,3.19565689,154.52,154.48,12.07999529]
[1762508945471,3.19565689,154.52,154.48,9.13229101]
[1762508946170,3.15,154.51,154.48,0.04329101]
[1762508946873,5.87355689,154.52,154.48,3.30329101]
[1762508947265,0.04565689,154.52,154.48,3.30329101]
[1762508947668,3.19565689,154.52,154.48,3.30329101]
[1762508947864,0.04565689,154.52,154.49,3.26]
[1762508948479,0.04565689,154.52,154.5,3.26]
[1762508949179,0.04565689,154.52,154.48,3.30329101]
[1762508949472,3.19565689,154.52,154.48,3.30329101]
[1762508949674,3.15,154.51,154.48,3.30329101]
[1762508949972,5.87335689,154.52,154.48,3.30329101]
[1762508950376,3.15,154.5,154.48,0.04329101]
[1762508950570,4.61363337,154.49,154.4,3.26]
[1762508950773,5.8296,154.47,154.4,3.26]
[1762508951568,3.15,154.48,154.41,3.26]
[1762508951773,0.04316365,154.45,154.43,3.26]
[1762508952573,0.04316365,154.45,154.44,3.26]
[1762508954871,4.38995581,154.55,154.44,3.26]
[1762508955076,9.37475578,154.54,154.44,3.26]
[1762508955267,9.37475578,154.53,154.44,3.26]
[1762508955472,4.38995581,154.55,154.44,3.26]
[1762508955473,9.37475578,154.52,154.44,3.26]
[1762508955677,4.38995581,154.55,154.44,3.26]
[1762508955678,9.37475578,154.51,154.44,3.26]
[1762508955872,0.04894208,154.49,154.46,0.04225663]
[1762508956076,0.04894208,154.49,154.41,3.09]
[1762508956277,12.17463681,154.55,154.41,3.09]
[1762508956278,4.38995581,154.55,154.41,3.09]
[1762508956478,9.37139749,154.54,154.41,3.09]
[1762508956775,9.37139749,154.53,154.41,3.09]
[1762508956975,2.01704403,154.49,154.45,0.04515366]
[1762508957174,2.01704403,154.49,154.45,0.04597199]
[1762508958580,0.04704403,154.49,154.45,3.13597199]
[1762508958976,2.01704403,154.49,154.45,3.13597199]
[1762508959185,2.01704403,154.49,154.45,0.04597199]
[1762508959374,0.04704403,154.49,154.45,3.13597199]
[1762508961086,0.04704403,154.49,154.46,3.09]
[1762508962496,2.01704403,154.49,154.45,0.04597199]
[1762508962691,2.01704403,154.49,154.45,3.13597199]
[1762508964090,7.84584403,154.49,154.45,3.13597199]
[1762508968896,0.04704403,154.49,154.45,3.13597199]
[1762508969199,2.01704403,154.49,154.45,0.04597199]
[1762508969405,1.97,154.47,154.45,0.04597199]
[1762508969904,1.97,154.46,154.4,8.9218]
[1762508970097,1.97,154.46,154.4,3.09]
[1762508971000,7.8006,154.44,154.41,0.0433694]
[1762508971301,1.97,154.44,154.41,3.1333694]
[1762508972401,2.01410618,154.45,154.41,3.1333694]
[1762508973402,7.84440618,154.45,154.41,3.1333694]
[1762508974099,1.97,154.44,154.41,0.0433694]
[1762508976102,7.801,154.43,154.41,0.0433694]
[1762508976310,2.01410618,154.45,154.41,3.1333694]
[1762508976496,7.801,154.43,154.41,0.0433694]
[1762508978096,5.831,154.43,154.41,3.1333694]
[1762508978298,2.01410618,154.45,154.41,3.1333694]
[1762508978699,5.8306,154.44,154.41,3.1333694]
[1762508978901,7.8006,154.44,154.41,3.1333694]
[1762508979297,1.97,154.44,154.41,3.1333694]
[1762508979906,0.04410618,154.45,154.41,3.1333694]
[1762508981505,0.04410618,154.45,154.43,3.1]
[1762508981696,1.98,154.51,154.43,3.1]
[1762508981892,1.98,154.51,154.44,3.1]
[1762508982503,5.8284,154.5,154.44,3.1]
[1762508982702,0.04372118,154.49,154.46,3.1]
[1762508984906,2.01372118,154.49,154.46,3.1]
[1762508985300,7.84252118,154.49,154.46,3.1]
[1762508986406,5.8291,154.48,154.45,3.16097863]
[1762508986594,2.01372118,154.49,154.45,3.16097863]
[1762508987802,1.97,154.48,154.45,3.16097863]
[1762508988807,0.04372118,154.49,154.45,3.16097863]
[1762508989410,5.87242118,154.49,154.46,3.12]
[1762508990404,0.04372118,154.49,154.46,3.12]
[1762508990710,0.04372118,154.49,154.47,3.12]
[1762508992809,0.04372118,154.49,154.47,8.9494]
[1762508993005,0.04372118,154.49,154.47,3.12]
[1762508997323,7.84252118,154.49,154.45,3.16097863]
[1762508998112,0.04372118,154.49,154.45,3.16097863]
[1762508999017,2.01372118,154.49,154.45,3.16097863]
[1762508999218,7.84242118,154.49,154.45,3.16097863]
[1762509000112,5.8291,154.48,154.45,3.16097863]
[1762509000309,1.97,154.48,154.45,0.04097863]
[1762509000515,1.97,154.46,154.45,0.04097863]
[1762509000813,5.8294,154.47,154.45,0.04097863]
[1762509001005,1.97,154.48,154.45,0.04097863]
[1762509001211,0.04372118,154.49,154.45,0.04097863]
[1762509001212,0.04372118,154.49,154.46,3.12]
[1762509002112,0.04372118,154.49,154.48,3.12]
[1762509004614,0.04372118,154.49,154.46,3.12]
[1762509004822,2.01372118,154.49,154.46,3.12]
[1762509005517,0.04372118,154.49,154.46,3.12]
[1762509006420,0.04372118,154.49,154.48,3.12]
[1762509007322,9.37776965,154.53,154.51,3.12]
[1762509007517,1.88805781,154.58,154.51,3.12]
[1762509007710,9.3783346,154.57,154.52,3.12]
[1762509007915,1.97,154.63,154.56,3.12]
[1762509008119,9.37991167,154.62,154.56,3.12]
[1762509008311,9.42419437,154.61,154.58,3.12]
[1762509008511,4.60080969,154.6,154.58,3.12]
[1762509008721,2.0142827,154.61,154.57,0.04696801]
[1762509008922,1.97,154.59,154.57,0.04696801]
[1762509009116,5.8685827,154.61,154.57,3.16696801]
[1762509009422,2.0142827,154.61,154.57,0.04696801]
[1762509009818,0.0442827,154.61,154.57,3.16696801]
[1762509010211,2.0142827,154.61,154.57,3.16696801]
[1762509010416,7.7947,154.6,154.57,0.04696801]
[1762509010818,1.97,154.58,154.57,0.04696801]
[1762509011116,0.0442827,154.61,154.57,3.16696801]
[1762509011323,7.8385827,154.61,154.57,3.16696801]
[1762509011522,2.0142827,154.61,154.57,3.16696801]
[1762509011922,3.85805781,154.58,154.57,0.04696801]
[1762509012124,1.97,154.57,154.53,3.12]
[1762509013026,5.8266,154.55,154.53,0.04840321]
[1762509013420,1.97,154.54,154.53,0.04840321]
[1762509013620,7.7976,154.52,154.47,3.12]
[1762509013822,1.97,154.51,154.47,3.12]
[1762509014416,7.7982,154.51,154.47,3.12]
[1762509014628,2.01129548,154.51,154.47,0.04967165]
[1762509014821,3.89935329,154.51,154.47,0.04967165]
[1762509015127,0.04129548,154.51,154.47,3.01967165]
[1762509016019,0.04129548,154.51,154.48,2.97]
[1762509016215,0.04129548,154.51,154.5,2.97]
[1762509018817,0.04129548,154.51,154.47,3.01967165]
[1762509019020,2.01129548,154.51,154.47,3.01967165]
[1762509019422,0.04129548,154.51,154.47,3.01967165]
[1762509020030,1.97,154.49,154.47,0.04967165]
[1762509020228,1.88805781,154.5,154.47,0.04967165]
[1762509020426,7.71645781,154.5,154.47,3.01967165]
[1762509020723,3.89935329,154.51,154.47,3.01967165]
[1762509020925,0.04129548,154.51,154.47,3.01967165]
[1762509021520,5.86939548,154.51,154.47,3.01967165]
[1762509021724,7.83939548,154.51,154.47,3.01967165]
[1762509022127,5.86939548,154.51,154.47,3.01967165]
[1762509022517,0.04129548,154.51,154.47,3.01967165]
[1762509023324,0.04129548,154.51,154.49,2.97]
[1762509023832,0.04129548,154.51,154.49,8.7986]
[1762509024027,0.04129548,154.51,154.5,2.97]
[1762509025824,1.88805781,154.58,154.51,2.97]
[1762509026124,9.37022622,154.57,154.51,2.97]
[1762509026331,7.71355781,154.58,154.51,2.97]
[1762509026520,9.37171118,154.57,154.52,2.97]
[1762509026720,4.92295229,154.56,154.52,2.97]
[1762509026928,0.04942982,154.56,154.52,3.01296836]
[1762509027132,0.04942982,154.56,154.52,8.84036836]
[1762509027331,0.04942982,154.56,154.53,2.97]
[1762509027633,0.04942982,154.56,154.55,2.97]
[1762509028829,1.88805781,154.64,154.57,2.97]
[1762509029133,9.51446662,154.63,154.57,2.97]
[1762509029334,4.92074304,154.62,154.57,2.97]
[1762509029632,5.8237,154.63,154.57,2.97]
[1762509029826,0.04607686,154.61,154.59,2.97]
[1762509030222,0.04607686,154.61,154.59,4.85805781]
[1762509030428,0.04607686,154.61,154.59,2.97]
[1762509031230,2.01607686,154.61,154.58,0.04740219]
[1762509031428,0.04607686,154.61,154.58,3.01740219]
[1762509033732,9.65818049,154.66,154.6,4.41806072]
[1762509034036,7.81782479,154.72,154.61,2.97]
[1762509034231,9.65813738,154.71,154.64,2.97]
[1762509034537,5.84782479,154.75,154.64,2.97]
[1762509034739,0.04205249,154.71,154.69,2.97]
[1762509036740,5.8179,154.78,154.7,8.7905]
[1762509037038,9.62994234,154.77,154.71,2.97]
[1762509037238,1.97,154.79,154.72,2.97]
[1762509037533,9.61704612,154.78,154.72,2.97]
[1762509037739,0.04829216,154.77,154.73,3.01144051]
[1762509038144,2.01829216,154.77,154.73,0.04144051]
[1762509038439,7.83669216,154.77,154.73,0.04144051]
[1762509038641,0.04829216,154.77,154.73,3.01144051]
[1762509038939,7.7887,154.76,154.73,0.04144051]
[1762509040437,1.97,154.76,154.73,0.04144051]
[1762509040944,5.8191,154.75,154.73,0.04144051]
[1762509041441,1.97,154.76,154.73,0.04144051]
[1762509041635,7.83659216,154.77,154.73,0.04144051]
[1762509041843,1.97,154.76,154.73,0.04144051]
[1762509043335,2.01829216,154.77,154.73,3.28144051]
[1762509044843,1.96,154.76,154.73,0.04144051]
[1762509045041,1.96,154.76,154.66,3.01]
[1762509045237,1.96,154.74,154.66,3.01]
[1762509045747,1.96,154.74,154.66,8.8322]
[1762509046150,0.04548596,154.72,154.68,3.0572133]
[1762509048649,1.96,154.71,154.68,0.0472133]
[1762509048942,7.82568596,154.72,154.68,3.0572133]
[1762509049146,1.96,154.69,154.68,0.0472133]
[1762509049741,1.96,154.71,154.68,0.0472133]
[1762509049948,5.86578596,154.72,154.68,3.0572133]
[1762509050450,7.82578596,154.72,154.68,3.0572133]
[1762509050746,2.00548596,154.72,154.68,3.0572133]
[1762509051656,0.04548596,154.72,154.68,3.0572133]
[1762509051946,2.00548596,154.72,154.68,3.0572133]
[1762509052643,1.96,154.7,154.68,0.0472133]
[1762509053051,7.7809,154.7,154.68,0.0472133]
[1762509053247,1.96,154.69,154.68,0.0472133]
[1762509053648,1.96,154.69,154.61,7.42806072]
[1762509053847,6.8280065,154.68,154.61,3.01]
[1762509054045,1.96,154.68,154.61,3.01]
[1762509054451,1.96,154.68,154.62,3.01]
[1762509054650,0.04703847,154.67,154.64,3.01]
[1762509054952,0.04703847,154.67,154.64,3.05464136]
[1762509055952,5.86913847,154.67,154.64,3.05464136]